fUSD/lending_fUSD_20251129
["ID","MTS","AMOUNT","RATE_DAILY","PERIOD"]
[395076048,1764403706777,-200.0,0.00015014,2]
[395076049,1764403708612,-243.52453199,0.00015014,2]
[395076050,1764403708633,-264.02560254,0.00015014,2]
[395076051,1764403710147,-235.97439746,0.00015014,2]
[395076052,1764403710169,-47.57772919,0.00015014,2]
[395076053,1764403710241,-452.42227081,0.00015014,2]
[395076054,1764403710276,-500.0,0.00015014,2]
[395076055,1764403710306,-500.0,0.00015014,2]
[395076056,1764403710335,-500.0,0.00015014,2]
[395076057,1764403710365,-300.0,0.00015014,2]
[395076058,1764403710393,-274.04751894,0.00015014,2]
[395076059,1764403710422,-200.0,0.00015014,2]
[395076060,1764403710452,-666.0,0.00015014,2]
[395076061,1764403710482,-500.0,0.00015014,2]
[395076062,1764403710513,-500.0,0.00015014,2]
[395076063,1764403710543,-500.0,0.00015014,2]
[395076064,1764403710734,-500.0,0.00015014,2]
[395076065,1764403710768,-500.0,0.00015014,2]
[395076066,1764403710803,-500.0,0.00015014,2]
[395076067,1764403710835,-151.0,0.00015014,2]
[395076068,1764403710867,-500.0,0.00015014,2]
[395076069,1764403710902,-500.0,0.00015014,2]
[395076070,1764403710934,-500.0,0.00015014,2]
[395076071,1764403710964,-151.0,0.00015014,2]
[395076072,1764403710994,-500.0,0.00015014,2]
[395076073,1764403711025,-500.0,0.00015014,2]
[395076074,1764403711059,-500.0,0.00015014,2]
[395076075,1764403711376,-500.0,0.00015014,2]
[395076076,1764403711406,-200.0,0.00015014,2]
[395076077,1764403711437,-500.0,0.00015014,2]
[395076078,1764403711471,-500.0,0.00015014,2]
[395076079,1764403711502,-250.0,0.00015014,2]
[395076080,1764403711533,-500.0,0.00015014,2]
[395076081,1764403711565,-500.0,0.00015014,2]
[395076082,1764403711602,-500.0,0.00015014,2]
[395076083,1764403711635,-505.8576371,0.00015014,2]
[395076084,1764403711667,-500.0,0.00015014,2]
[395076085,1764403711701,-500.0,0.00015014,2]
[395076086,1764403711899,-500.0,0.00015014,2]
[395076087,1764403711931,-500.0,0.00015014,2]
[395076088,1764403711961,-500.0,0.00015014,2]
[395076089,1764403711991,-500.0,0.00015014,2]
[395076090,1764403712020,-500.0,0.00015014,2]
[395076091,1764403712065,-500.0,0.00015014,2]
[395076092,1764403712096,-500.0,0.00015014,2]
[395076093,1764403712130,-500.0,0.00015014,2]
[395076094,1764403712162,-500.0,0.00015014,2]
[395076095,1764403712197,-500.0,0.00015014,2]
[395076096,1764403712387,-500.0,0.00015014,2]
[395076097,1764403712421,-500.0,0.00015014,2]
[395076098,1764403712452,-500.0,0.00015014,2]
[395076099,1764403712482,-500.0,0.00015014,2]
[395076100,1764403712515,-500.0,0.00015014,2]
[395076101,1764403712545,-500.0,0.00015014,2]
[395076102,1764403712576,-500.0,0.00015014,2]
[395076103,1764403712992,-500.0,0.00015014,2]
[395076104,1764403713025,-500.0,0.00015014,2]
[395076105,1764403713055,-500.0,0.00015014,2]
[395076106,1764403713158,-500.0,0.00015014,2]
[395076107,1764403713190,-334.5472959,0.00015014,2]
[395076108,1764403713228,-500.0,0.00015014,2]
[395076109,1764403713259,-500.0,0.00015014,2]
[395076110,1764403713291,-500.0,0.00015014,2]
[395076111,1764403713321,-500.0,0.00015014,2]
[395076112,1764403713350,-500.0,0.00015014,2]
[395076113,1764403713381,-214.15237565,0.00015014,2]
[395076114,1764403713411,-267.46074303,0.00015014,2]
[395076115,1764403713439,-578.20924308,0.0001502,2]
[395076116,1764403714654,-553.53658991,0.00014923,2]
[395076117,1764403716352,-6933.55594322,0.00014923,2]
[395076118,1764403716394,-10000.01,0.00014923,2]
[395076119,1764403717220,-10000.01,0.00014923,2]
[395076120,1764403717274,-6647.31016687,0.00014923,2]
[395076121,1764403717283,-3352.69983313,0.00015021,2]
[395076122,1764403717328,-9832.84797413,0.00015021,2]
[395076123,1764403717338,-167.16202587,0.00015022,2]
[395076124,1764403717378,-832.83797413,0.00015022,2]
[395076125,1764403717387,-500.0,0.00015022,2]
[395076126,1764403717396,-500.0,0.00015022,2]
[395076127,1764403717405,-300.0,0.00015022,2]
[395076128,1764403717414,-415.23956126,0.00015022,2]
[395076129,1764403717424,-500.0,0.00015022,2]
[395076130,1764403717433,-500.0,0.00015022,2]
[395076131,1764403717442,-500.0,0.00015022,2]
[395076132,1764403717452,-500.0,0.00015022,2]
[395076133,1764403717461,-302.27413806,0.00015022,2]
[395076134,1764403717470,-500.0,0.00015022,2]
[395076135,1764403717480,-502.19778129,0.00015022,2]
[395076136,1764403717489,-500.0,0.00015022,2]
[395076137,1764403717498,-244.36981925,0.00015022,2]
[395076138,1764403717507,-500.0,0.00015022,2]
[395076139,1764403717516,-500.0,0.00015022,2]
[395076140,1764403717525,-342.53787687,0.00015022,2]
[395076141,1764403717534,-500.0,0.00015022,2]
[395076142,1764403717543,-500.0,0.00015022,2]
[395076143,1764403717553,-500.0,0.00015022,2]
[395076144,1764403717569,-294.8362028,0.00015022,2]
[395076145,1764403717578,-265.71664634,0.00015022,2]
[395076146,1764403717612,-234.28335366,0.00015022,2]
[395076147,1764403717621,-461.98672521,0.00015022,2]
[395076148,1764403717630,-424.54045453,0.00015022,2]
[395076149,1764403717639,-500.0,0.00015022,2]
[395076150,1764403717648,-500.0,0.00015022,2]
[395076151,1764403717657,-463.55783279,0.00015022,2]
[395076152,1764403717667,-500.0,0.00015022,2]
[395076153,1764403717676,-500.0,0.00015022,2]
[395076154,1764403717685,-160.41929045,0.00015022,2]
[395076155,1764403717694,-500.0,0.00015022,2]
[395076156,1764403717704,-500.0,0.00015022,2]
[395076157,1764403717714,-500.0,0.00015022,2]
[395076158,1764403717725,-500.0,0.00015022,2]
[395076159,1764403717734,-500.0,0.00015022,2]
[395076160,1764403717748,-500.0,0.00015022,2]
[395076161,1764403717759,-500.0,0.00015022,2]
[395076162,1764403717768,-500.0,0.00015022,2]
[395076163,1764403717777,-500.0,0.00015022,2]
[395076164,1764403717787,-355.35293957,0.00015022,2]
[395076165,1764403717796,-500.0,0.00015022,2]
[395076166,1764403717805,-500.0,0.00015022,2]
[395076167,1764403717815,-347.44043557,0.00015022,2]
[395076168,1764403717824,-52.42896822,0.00015022,2]
[395076169,1764403717943,-447.57103178,0.00015022,2]
[395076170,1764403717955,-500.0,0.00015022,2]
[395076171,1764403717964,-500.0,0.00015022,2]
[395076172,1764403717974,-500.0,0.00015022,2]
[395076173,1764403717982,-500.0,0.00015022,2]
[395076174,1764403717992,-500.0,0.00015022,2]
[395076175,1764403718001,-500.0,0.00015022,2]
[395076176,1764403718010,-500.0,0.00015022,2]
[395076177,1764403718019,-151.0,0.00015023,2]
[395076178,1764403718028,-215.73831505,0.00015023,2]
[395076179,1764403718037,-200.0,0.00015023,2]
[395076180,1764403719037,-321.92752633,0.00015023,2]
[395076181,1764403719589,525.7108,0.00014923,2]
[395076182,1764403720085,151.0,0.00015023,2]
[395076183,1764403720125,161.80373628,0.00015023,2]
[395076184,1764403721608,183.59477729,0.00015023,2]
[395076185,1764403721655,151.0,0.00015023,2]
[395076186,1764403721765,-332.45104408,0.00015023,2]
[395076187,1764403724962,-594.52034702,0.00015023,2]
[395076188,1764403726071,318.328044,0.00014848,2]
[395076189,1764403727182,-500.0,0.00015023,2]
[395076190,1764403729363,-500.0,0.00015023,2]
[395076191,1764403731397,-189.80341009,0.00015023,2]
[395076192,1764403732060,1286.89092466,0.00014923,2]
[395076193,1764403733257,169.60357611,0.00015022,2]
[395076194,1764403735578,-500.0,0.00015023,2]
[395076195,1764403739193,441.56860199,0.00015022,2]
[395076196,1764403739251,-300.0,0.00015023,2]
[395076197,1764403740422,-431.05033016,0.00015023,2]
[395076198,1764403741887,300.0,0.00015022,2]
[395076199,1764403743645,-444.07039774,0.00015023,2]
[395076200,1764403747014,-500.0,0.00015023,2]
[395076201,1764403748224,3727.632585,7.945e-05,2]
[395076202,1764403749956,-238.71243769,0.00015023,2]
[395076204,1764403751545,-300.0,0.00015023,2]
[395076205,1764403753453,-387.0721,0.00015023,2]
[395076206,1764403757016,-420.2104,0.00015023,2]
[395076208,1764403758877,-291.19084051,0.00015023,2]
[395076209,1764403761114,-559.01077994,0.00015023,2]
[395076217,1764403762309,-294.84921023,0.00015023,2]
[395076218,1764403765191,-541.07716231,0.00015023,2]
[395076219,1764403767557,-500.0,0.00015023,2]
[395076220,1764403770321,-196.32163179,0.00015023,2]
[395076221,1764403772097,173.61841926,0.00014923,2]
[395076222,1764403772597,-177.3655158,0.00015023,2]
[395076223,1764403774154,-300.0,0.00015023,2]
[395076224,1764403776321,-300.0,0.00015023,2]
[395076225,1764403778069,-300.0,0.00015023,2]
[395076226,1764403781195,-225.56507546,0.00015023,2]
[395076227,1764403784008,-454.10972621,0.00015023,2]
[395076228,1764403786897,-342.33339584,0.00015023,2]
[395076229,1764403789446,-273.56713682,0.00015023,2]
[395076230,1764403791109,-381.37746492,0.00015023,2]
[395076231,1764403792776,-174.03173377,0.00015023,2]
[395076232,1764403797896,-353.36575955,0.00015023,2]
[395076233,1764403800029,-500.0,0.00015023,2]
[395076234,1764403801628,300.0,0.00015022,2]
[395076235,1764403801659,300.0,0.00015022,2]
[395076236,1764403801711,1200.0,0.00015022,2]
[395076237,1764403801892,-194.07285986,0.00015023,2]
[395076238,1764403802979,213.0,0.00015023,2]
[395076239,1764403803886,-500.0,0.00015023,2]
[395076240,1764403807379,-486.19290993,0.00015023,2]
[395076241,1764403808959,200.0,0.00015023,2]
[395076242,1764403808991,-249.54801596,0.00015023,2]
[395076243,1764403812495,721.96933541,0.00015023,2]
[395076244,1764403812521,10000.01,0.00015023,2]
[395076245,1764403812545,10000.01,0.00015023,2]
[395076246,1764403812569,10000.01,0.00015023,2]
[395076247,1764403812594,10000.01,0.00015023,2]
[395076248,1764403812618,10000.01,0.00015023,2]
[395076249,1764403812643,10000.01,0.00015023,2]
[395076250,1764403812673,10000.01,0.00015023,2]
[395076251,1764403812698,6881.76617429,0.00015023,2]
[395076252,1764403813268,-500.0,0.00015023,2]
[395076253,1764403816219,-249.54801596,0.00015023,2]
[395076254,1764403817426,-250.45198404,0.00015023,2]
[395076255,1764403821102,586.85,0.00015013,2]
[395076256,1764403821997,-228.26601918,0.00015023,2]
[395076257,1764403822235,500.0,0.00014923,2]
[395076258,1764403824764,-347.25026301,0.00015023,2]
[395076259,1764403829809,-500.0,0.00015023,2]
[395076263,1764403831711,-500.0,0.00015023,2]
[395076264,1764403831843,-282013.09919825,0.00015023,2]
[395076265,1764403831853,-280.8168,0.00015023,2]
[395076266,1764403831863,-1418.84,0.00015114,2]
[395076267,1764403831872,-166.66,0.0001515,2]
[395076268,1764403831882,-200.0,0.00015173,2]
[395076269,1764403831892,-200.0,0.00015173,2]
[395076270,1764403831902,-4770.0,0.00015194,2]
[395076271,1764403831912,-8928.71471858,0.00015197,2]
[395076272,1764403831923,-163.53,0.000152,2]
[395076273,1764403831932,-500.0,0.00015222,2]
[395076274,1764403831942,-500.0,0.00015222,2]
[395076275,1764403831952,-500.0,0.00015222,2]
[395076276,1764403831962,-500.0,0.00015222,2]
[395076277,1764403831972,-908.29614747,0.00015226,2]
[395076278,1764403831981,-88715.7704749,0.00015237,2]
[395076279,1764403831991,-1000.0,0.00015297,2]
[395076280,1764403832001,-6474.22,0.0001531,2]
[395076281,1764403832012,-537.19,0.0001531,2]
[395076282,1764403832022,-1000.0,0.00015318,2]
[395076283,1764403832031,-200.0,0.00015325,2]
[395076284,1764403832040,-200.0,0.00015325,2]
[395076286,1764403832049,-500.0,0.00015359,2]
[395076287,1764403832059,-4770.0,0.00015361,2]
[395076288,1764403832069,-164.0,0.00015385,2]
[395076289,1764403832079,-8928.71471852,0.00015386,2]
[395076290,1764403832088,-1418.84,0.00015388,2]
[395076291,1764403832098,-264.0,0.00015416,2]
[395076292,1764403832107,-500.0,0.00015417,2]
[395076293,1764403832117,-512.36412986,0.00015417,2]
[395076294,1764403832126,-507.55013453,0.00015417,2]
[395076295,1764403832136,-500.0,0.00015417,2]
[395076296,1764403832146,-500.0,0.00015417,2]
[395076297,1764403832156,-500.0,0.00015417,3]
[395076298,1764403832165,-525.20221619,0.00015417,4]
[395076299,1764403832174,-272.5461406,0.00015417,2]
[395076300,1764403832184,-1602.0,0.00015453,2]
[395076301,1764403832194,-2230.0,0.00015458,2]
[395076302,1764403832205,-174.0,0.00015476,2]
[395076303,1764403832214,-200.0,0.00015478,2]
[395076304,1764403832223,-200.0,0.00015478,2]
[395076305,1764403832233,-4770.0,0.00015486,2]
[395076306,1764403832243,-551.92,0.000155,2]
[395076307,1764403832252,-1762.0,0.00015501,2]
[395076308,1764403832262,-500.0,0.00015524,2]
[395076309,1764403832272,-500.53847004,0.00015524,2]
[395076310,1764403832282,-500.0,0.0001554,2]
[395076311,1764403832294,-500.0,0.0001554,2]
[395076312,1764403832303,-500.0,0.0001554,2]
[395076313,1764403832312,-1602.0,0.00015557,2]
[395076314,1764403832322,-1602.0,0.00015557,2]
[395076315,1764403832333,-250.0,0.0001556,2]
[395076316,1764403832342,-574.12855637,0.00015562,2]
[395076317,1764403832352,-151.0,0.00015562,2]
[395076318,1764403832362,-200.0,0.00015562,2]
[395076319,1764403832374,-666.0,0.00015562,2]
[395076320,1764403832384,-151.0,0.00015562,2]
[395076321,1764403832393,-204.43310328,0.00015562,2]
[395076322,1764403832402,-8928.71471852,0.00015575,2]
[395076323,1764403832411,-1602.0,0.00015618,2]
[395076324,1764403832422,-172.85,0.0001563,2]
[395076325,1764403832431,-200.0,0.00015633,2]
[395076326,1764403832441,-150.0,0.00015642,2]
[395076327,1764403832451,-1602.0,0.00015648,2]
[395076328,1764403832460,-1418.84,0.00015662,2]
[395076329,1764403832469,-300.0,0.0001567,2]
[395076330,1764403832478,-1602.0,0.00015685,2]
[395076331,1764403832487,-335.91,0.00015707,2]
[395076332,1764403832496,-3030.40731845,0.00015745,2]
[395076333,1764403832505,-1414.92178151,0.00015745,2]
[395076334,1764403832514,-8928.71471852,0.00015765,2]
[395076335,1764403832523,-261.06,0.00015878,2]
[395076336,1764403832539,-166.67,0.0001588,2]
[395076337,1764403832549,-53953.36373902,0.000159,2]
[395076338,1764403832558,-1162.52488222,0.000159,2]
[395076339,1764403832567,-824.13365986,0.000159,2]
[395076340,1764403832577,-1418.84,0.00015936,2]
[395076341,1764403832586,-3372.39189354,0.00015954,2]
[395076342,1764403832599,-5556.32282498,0.00015954,2]
[395076343,1764403832610,-500.0,0.00015973,2]
[395076344,1764403832620,-500.0,0.00015973,2]
[395076345,1764403832629,-500.0,0.00015973,2]
[395076346,1764403832639,-500.0,0.00015973,2]
[395076347,1764403832647,-500.0,0.00015973,2]
[395076348,1764403832657,-500.0,0.00015973,2]
[395076349,1764403832667,-500.0,0.00015973,2]
[395076350,1764403832677,-214.54087661,0.00015973,2]
[395076351,1764403832687,-500.0,0.00015973,2]
[395076352,1764403832696,-500.0,0.00015973,2]
[395076353,1764403832706,-500.0,0.00015973,2]
[395076354,1764403832716,-500.0,0.00015999,2]
[395076355,1764403832725,-500.0,0.00015999,2]
[395076356,1764403832735,-500.0,0.00015999,2]
[395076357,1764403832746,-500.0,0.00015999,2]
[395076358,1764403832755,-500.0,0.00015999,2]
[395076359,1764403832765,-520.08112134,0.00015999,2]
[395076360,1764403832774,-500.0,0.00015999,2]
[395076361,1764403832784,-544.34192817,0.00015999,2]
[395076362,1764403832794,-500.0,0.00015999,2]
[395076363,1764403832804,-500.0,0.00015999,2]
[395076364,1764403832814,-7248.0,0.00016,2]
[395076365,1764403832824,-31155.06230075,0.00016,4]
[395076366,1764403832836,-37646.06698544,0.00016,4]
[395076367,1764403832847,-63407.10725967,0.00016,4]
[395076368,1764403834568,280.8168,0.00014923,2]
[395076371,1764403842224,-1.7e-07,0.00015126,2]
[395076372,1764403842237,-999.0,0.00015126,2]
[395076373,1764403842248,-257.09530484,0.00015126,2]
[395076374,1764403842257,-159.10280221,0.00015562,2]
[395076375,1764403842267,-500.80189295,0.000159,2]
[395076388,1764403846054,-99.19810705,0.000159,2]
[395076389,1764403846064,-1124.00493111,0.00016,4]
[395076391,1764403854593,-195.31373055,0.00014923,2]
[395076392,1764403862767,-499.99999983,0.00014923,2]
[395076393,1764403864382,-191.43954845,0.00014923,2]
[395076394,1764403866897,-113.24672117,0.00014923,2]
[395076395,1764403866923,-114.71146789,0.00014923,2]
[395076396,1764403868530,-500.0,0.00014923,2]
[395076397,1764403871023,-249.54801596,0.00014923,2]
[395076398,1764403872155,-500.0,0.00014923,2]
[395076399,1764403875034,-500.0,0.00014923,2]
[395076400,1764403877667,-500.0,0.00014923,2]
[395076401,1764403880417,-246.70617127,0.00014923,2]
[395076402,1764403882118,-581.0457758,0.00014923,2]
[395076403,1764403884827,-500.0,0.00014923,2]
[395076404,1764403888789,-500.0,0.00014923,2]
[395076405,1764403891178,-500.0,0.00014923,2]
[395076406,1764403892936,-500.0,0.00014923,2]
[395076407,1764403893028,1923.234,0.00014625,2]
[395076408,1764403893079,154.119,0.00014625,2]
[395076409,1764403894613,-280.15032197,0.00014923,2]
[395076410,1764403896953,-225.43286318,0.00014923,2]
[395076411,1764403899766,-500.0,0.00014923,2]
[395076412,1764403902304,-500.0,0.00014923,2]
[395076413,1764403904067,-300.0,0.00014923,2]
[395076414,1764403905986,-500.0,0.00014923,2]
[395076415,1764403908957,-165.34815311,0.00014923,2]
[395076416,1764403911379,-167.48453338,0.00014923,2]
[395076417,1764403913231,-500.0,0.00014923,2]
[395076418,1764403917952,-160.98795251,0.00014923,2]
[395076419,1764403919770,-280.49203573,0.00014923,2]
[395076420,1764403921321,300.0,0.00014922,2]
[395076421,1764403921441,-173.66389438,0.00014923,2]
[395076422,1764403922295,150.0,0.00014922,2]
[395076423,1764403925575,300.0,0.00014922,2]
[395076424,1764403925801,-500.0,0.00014923,2]
[395076425,1764403927153,-500.0,0.00014923,2]
[395076426,1764403928804,-500.0,0.00014923,2]
[395076427,1764403930431,-244.61167602,0.00014923,2]
[395076428,1764403933759,-891.71688568,0.00014923,2]
[395076429,1764403933954,987.02951012,0.00014923,2]
[395076431,1764403936448,-195.04354709,0.00014923,2]
[395076432,1764403938223,-244.07286003,0.00014923,2]
[395076434,1764403942381,-500.0,0.00014923,2]
[395076435,1764403944764,-500.0,0.00014923,2]
[395076436,1764403947885,-500.0,0.00014923,2]
[395076437,1764403949502,-500.0,0.00014923,2]
[395076438,1764403951343,-500.0,0.00014923,2]
[395076439,1764403952227,309.09802139,0.00014922,2]
[395076440,1764403953351,240.04658783,0.00014922,2]
[395076441,1764403953396,500.0,0.00014922,2]
[395076442,1764403953548,500.0,0.00014922,2]
[395076443,1764403953635,500.0,0.00014922,2]
[395076444,1764403953730,263.99193088,0.00014922,2]
[395076445,1764403954079,-249.54801596,0.00014923,2]
[395076446,1764403956124,-5097.35717549,0.00014923,2]
[395076447,1764403958077,-500.04645846,0.00014923,2]
[395076448,1764403959266,-302.0,0.00014923,2]
[395076449,1764403960014,-10000.01,0.00014923,2]
[395076450,1764403960199,-10000.01,0.00014923,2]
[395076451,1764403960415,-10000.01,0.00014923,2]
[395076452,1764403960496,-10000.01,0.00014923,2]
[395076453,1764403960552,-10000.01,0.00014923,2]
[395076454,1764403960698,-10000.01,0.00014923,2]
[395076455,1764403960908,-10000.01,0.00014923,2]
[395076456,1764403960967,-10000.01,0.00014923,2]
[395076457,1764403961034,-10000.01,0.00014923,2]
[395076458,1764403961148,-10000.01,0.00014923,2]
[395076459,1764403962029,-338.02,0.00014923,2]
[395076460,1764403964902,-500.0,0.00014923,2]
[395076461,1764403969197,-500.0,0.00014923,2]
[395076463,1764403972700,-283.07274848,0.00014922,2]
[395076466,1764403974237,-278.92725152,0.00014922,2]
[395076467,1764403974261,-128.2852829,0.00014923,2]
[395076468,1764403978133,-500.0,0.00014923,2]
[395076469,1764403981620,-1365.28189182,0.00014923,2]
[395076470,1764403983175,-350.0,0.00014923,2]
[395076471,1764403985195,-255.92714014,0.00014923,2]
[395076472,1764403986900,-500.0,0.00014923,2]
[395076473,1764403988083,5397.049316,7.945e-05,2]
[395076474,1764403991422,-500.0,0.00014923,2]
[395076475,1764403993104,-174.684007,0.00014923,2]
[395076476,1764404017679,-10000.01,0.00014848,2]
[395076477,1764404017894,-2601.289343,0.00014848,2]
[395076478,1764404017923,-1363.01513129,0.00014923,2]
[395076480,1764404098747,471.89435725,0.00014823,2]
[395076481,1764404101394,300.0,0.00014922,2]
[395076482,1764404101467,1200.0,0.00014922,2]
[395076483,1764404101662,300.0,0.00014922,2]
[395076484,1764404101972,150.0,0.00014922,2]
[395076485,1764404115349,1119.58178943,0.00014823,2]
[395076486,1764404143296,4464.35735926,0.00014823,2]
[395076487,1764404161319,300.0,0.00014922,2]
[395076488,1764404197889,235.7593192,0.00014922,2]
[395076489,1764404221572,300.0,0.00014922,2]
[395076490,1764404225932,1630.31153211,0.00014923,2]
[395076491,1764404225957,364.37698269,0.00014923,2]
[395076492,1764404227192,200.0,0.00014923,2]
[395076493,1764404228804,578.20924308,0.00014923,2]
[395076494,1764404230765,666.0,0.00014923,2]
[395076495,1764404230809,553.64373807,0.00014923,2]
[395076496,1764404234578,500.0,0.00014923,2]
[395076497,1764404235017,282.15,0.000149,2]
[395076498,1764404235615,500.0,0.00014923,2]
[395076499,1764404236220,500.0,0.00014923,2]
[395076500,1764404236821,500.0,0.00014923,2]
[395076501,1764404237443,500.0,0.00014923,2]
[395076502,1764404237487,151.0,0.00014923,2]
[395076503,1764404237610,200.8894483,0.00014923,2]
[395076504,1764404238070,500.0,0.00014923,2]
[395076505,1764404238932,500.0,0.00014923,2]
[395076506,1764404239422,500.0,0.00014923,2]
[395076507,1764404239789,500.0,0.00014923,2]
[395076508,1764404240055,500.0,0.00014923,2]
[395076509,1764404240155,500.0,0.00014923,2]
[395076510,1764404240693,500.0,0.00014923,2]
[395076511,1764404240818,500.0,0.00014923,2]
[395076512,1764404241116,503.74058786,0.00014923,2]
[395076513,1764404241142,126.50290228,0.00014923,2]
[395076514,1764404241464,500.0,0.00014923,2]
[395076515,1764404241527,500.0,0.00014923,2]
[395076516,1764404241993,500.0,0.00014923,2]
[395076517,1764404242076,500.0,0.00014923,2]
[395076518,1764404242668,500.0,0.00014923,2]
[395076519,1764404243248,500.0,0.00014923,2]
[395076520,1764404243819,334.5472959,0.00014923,2]
[395076521,1764404243865,500.0,0.00014923,2]
[395076522,1764404245582,500.0,0.00014923,2]
[395076523,1764404245738,200.0,0.00014923,2]
[395076524,1764404245966,500.0,0.00014923,2]
[395076525,1764404246263,500.0,0.00014923,2]
[395076526,1764404246693,500.0,0.00014923,2]
[395076527,1764404249675,500.0,0.00014923,2]
[395076528,1764404250147,500.0,0.00014923,2]
[395076529,1764404250469,151.0,0.00014923,2]
[395076530,1764404250795,500.0,0.00014923,2]
[395076531,1764404251412,500.0,0.00014923,2]
[395076532,1764404252046,500.0,0.00014923,2]
[395076533,1764404252728,500.0,0.00014923,2]
[395076534,1764404253348,151.0,0.00014923,2]
[395076535,1764404253386,500.0,0.00014923,2]
[395076536,1764404253957,36.95980182,0.00014923,2]
[395076537,1764404253983,130.12201428,0.00014923,2]
[395076538,1764404254036,500.0,0.00014923,2]
[395076539,1764404255073,500.0,0.00014923,2]
[395076540,1764404256339,500.0,0.00014923,2]
[395076541,1764404256784,500.0,0.00014923,2]
[395076542,1764404257048,500.0,0.00014923,2]
[395076543,1764404258779,166.66,0.00014025,2]
[395076544,1764404258926,166.66,0.0001432,2]
[395076545,1764404259147,166.66,0.00014615,2]
[395076546,1764404259360,166.66,0.0001491,2]
[395076547,1764404260094,300.0,0.00014923,2]
[395076548,1764404262856,500.0,0.00014923,2]
[395076549,1764404263931,500.0,0.00014923,2]
[395076550,1764404264198,500.0,0.00014923,2]
[395076551,1764404264976,500.0,0.00014923,2]
[395076552,1764404265634,-3931.35362847,0.00014923,2]
[395076553,1764404265690,500.0,0.00014923,2]
[395076554,1764404265771,-9500.01,0.00014923,2]
[395076555,1764404266023,500.0,0.00014923,2]
[395076556,1764404267738,-500.0,0.00014923,2]
[395076557,1764404267768,-500.0,0.00014923,2]
[395076558,1764404267943,-7500.01,0.00014923,2]
[395076559,1764404267995,-500.0,0.00014923,2]
[395076560,1764404268141,-9000.01,0.00014923,2]
[395076561,1764404268238,-10000.01,0.00014923,2]
[395076562,1764404270727,-500.0,0.00014923,2]
[395076563,1764404270757,-500.0,0.00014923,2]
[395076564,1764404270787,-500.0,0.00014923,2]
[395076565,1764404270865,-7000.01,0.00014923,2]
[395076566,1764404270905,-10000.01,0.00014923,2]
[395076567,1764404270954,-10000.01,0.00014923,2]
[395076568,1764404282057,2803.34,7.355e-05,2]
[395076569,1764404282553,2803.34,7.742e-05,2]
[395076570,1764404282702,2803.34,8.129e-05,2]
[395076571,1764404282913,1589.99,8.516e-05,2]
[395076572,1764404282943,1213.35,8.516e-05,2]
[395076573,1764404283320,2803.34,8.903e-05,2]
[395076574,1764404283538,2803.34,9.291e-05,2]
[395076575,1764404283755,2803.34,9.678e-05,2]
[395076576,1764404283949,376.64,0.00010065,2]
[395076577,1764404283977,2426.7,0.00010065,2]
[395076578,1764404284575,2803.34,0.00010452,2]
[395076579,1764404284696,2803.34,0.00010839,2]
[395076580,1764404284782,1966.63,0.00011226,2]
[395076581,1764404284810,836.71,0.00011226,2]